bitfinex-derivatives/quotes_SOLF0:USTF0_20250730
["timestamp","ask_amount","ask_price","bid_price","bid_amount"]
[1753836376586,2.96,179.6,179.58,5.5693]
[1753836376879,5.5681,179.62,179.58,5.5693]
[1753836377086,7.23077924,179.61,179.59,3.11]
[1753836377281,2.96,179.6,179.59,3.11]
[1753836377681,2.96,179.6,179.59,8.679]
[1753836378988,2.96,179.6,179.59,3.11]
[1753836379991,2.96,179.6,179.59,8.679]
[1753836383098,2.75817737,179.65,179.6,3.11]
[1753836383295,7.22726305,179.64,179.6,3.11]
[1753836383500,2.96,179.63,179.6,3.11]
[1753836383794,2.96,179.63,179.62,3.11]
[1753836384191,7.22766195,179.63,179.62,3.11]
[1753836384391,2.75817737,179.63,179.56,3.11]
[1753836384590,2.96,179.62,179.56,3.11]
[1753836385189,4.26881098,179.61,179.56,3.11]
[1753836385397,2.96,179.6,179.57,3.11]
[1753836385596,2.96,179.59,179.57,8.6794]
[1753836385798,2.96,179.58,179.57,5.5694]
[1753836385995,2.96,179.58,179.57,8.6794]
[1753836386195,2.96,179.58,179.53,2.75817737]
[1753836386196,2.96,179.58,179.54,3.11]
[1753836386497,2.96,179.58,179.55,3.11]
[1753836386795,2.96,179.58,179.56,8.6797]
[1753836387300,2.96,179.58,179.56,3.11]
[1753836387696,2.96,179.6,179.55,5.5702]
[1753836387899,2.96,179.58,179.56,3.11]
[1753836388498,2.96,179.57,179.56,3.11]
[1753836388899,8.5296,179.57,179.56,3.11]
[1753836389099,2.96,179.57,179.56,3.11]
[1753836391500,2.96,179.57,179.55,5.5703]
[1753836391902,2.96,179.57,179.55,8.6803]
[1753836392196,2.75817737,179.59,179.52,3.11]
[1753836392399,2.96,179.58,179.52,3.11]
[1753836393002,2.96,179.58,179.51,5.86817737]
[1753836393203,2.96,179.58,179.52,3.11]
[1753836393403,2.96,179.56,179.52,3.11]
[1753836394206,2.96,179.55,179.52,3.11]
[1753836394399,2.96,179.58,179.55,3.11]
[1753836394601,2.96,179.62,179.57,2.75817737]
[1753836394800,2.96,179.62,179.58,3.11]
[1753836395002,2.96,179.62,179.6,8.6787]
[1753836395307,2.96,179.62,179.61,3.11]
[1753836396100,2.96,179.63,179.62,3.11]
[1753836397199,2.96,179.63,179.55,2.75817737]
[1753836397505,2.96,179.63,179.49,11.1438]
[1753836397506,2.96,179.63,179.57,2.75817737]
[1753836397807,5.5676,179.64,179.59,5.5688]
[1753836398008,2.96,179.63,179.6,3.11]
[1753836398306,2.96,179.6,179.58,3.11]
[1753836398509,2.96,179.59,179.58,3.11]
[1753836398806,2.96,179.59,179.54,3.11]
[1753836398997,2.75817737,179.59,179.52,3.11]
[1753836399202,2.96,179.58,179.52,3.11]
[1753836399408,2.96,179.58,179.5,5.86817737]
[1753836399601,2.96,179.54,179.51,3.11]
[1753836400206,2.96,179.54,179.53,5.5709]
[1753836400410,2.96,179.54,179.53,8.6809]
[1753836400903,2.96,179.53,179.47,2.75817737]
[1753836401306,5.5702,179.56,179.5,5.5715]
[1753836401503,2.96,179.54,179.5,5.5715]
[1753836401699,2.96,179.53,179.47,2.75817737]
[1753836402008,2.96,179.51,179.44,3.11]
[1753836402910,2.75817737,179.5,179.44,3.11]
[1753836403111,2.96,179.49,179.44,3.11]
[1753836403309,2.96,179.47,179.46,3.11]
[1753836403807,3.08,179.49,179.46,3.11]
[1753836404309,3.08,179.49,179.46,5.573]
[1753836404608,3.08,179.49,179.48,3.07]
[1753836405306,3.08,179.48,179.46,3.07]
[1753836405500,3.08,179.47,179.45,5.5733]
[1753836405907,8.32987737,179.51,179.46,5.5731]
[1753836406210,3.08,179.48,179.47,3.07]
[1753836408114,3.08,179.5,179.44,3.07]
[1753836408606,3.08,179.5,179.45,3.07]
[1753836408811,3.08,179.51,179.45,3.07]
[1753836409008,3.08,179.55,179.48,2.75817737]
[1753836409210,2.75817737,179.54,179.49,3.07]
[1753836409403,3.08,179.51,179.47,5.5725]
[1753836409606,3.08,179.51,179.47,8.6425]
[1753836409807,2.75817737,179.52,179.47,5.5725]
[1753836410007,3.08,179.51,179.49,5.5721]
[1753836410208,3.08,179.5,179.49,8.6421]
[1753836410611,3.08,179.5,179.49,3.07]
[1753836410812,3.08,179.5,179.48,8.6423]
[1753836413113,3.08,179.51,179.48,8.6423]
[1753836413611,8.6515,179.51,179.48,3.07]
[1753836413815,3.08,179.5,179.47,3.07]
[1753836414013,8.6518,179.5,179.47,3.07]
[1753836414209,3.08,179.48,179.47,3.07]
[1753836415613,3.08,179.47,179.45,5.5733]
[1753836415817,5.5722,179.49,179.46,3.07]
[1753836416119,3.08,179.47,179.46,3.07]
[1753836416918,3.08,179.47,179.46,8.6431]
[1753836420220,3.08,179.51,179.43,2.75817737]
[1753836420416,3.08,179.53,179.49,3.07]
[1753836420609,3.08,179.55,179.49,5.82817737]
[1753836420812,3.08,179.55,179.52,5.5709]
[1753836421018,2.75817737,179.57,179.52,5.5709]
[1753836421219,3.08,179.54,179.52,5.5709]
[1753836421824,2.75817737,179.55,179.47,2.75817737]
[1753836422020,3.08,179.54,179.48,3.07]
[1753836422712,3.08,179.54,179.47,2.75817737]
[1753836423021,3.08,179.58,179.54,3.07]
[1753836423425,3.08,179.57,179.56,3.07]
[1753836423818,3.08,179.6,179.56,8.6399]
[1753836424020,3.08,179.58,179.53,2.75817737]
[1753836424214,3.08,179.57,179.53,2.75817737]
[1753836424414,3.08,179.56,179.54,5.5705]
[1753836424619,3.08,179.56,179.55,3.07]
[1753836424815,3.08,179.56,179.49,2.75817737]
[1753836425120,3.08,179.51,179.48,3.07]
[1753836425518,3.08,179.51,179.5,3.07]
[1753836426721,3.08,179.51,179.5,8.6418]
[1753836427824,8.32857737,179.55,179.51,5.5714]
[1753836428020,3.08,179.54,179.52,3.07]
[1753836428219,3.08,179.54,179.51,3.07]
[1753836428418,8.6509,179.54,179.51,3.07]
[1753836428622,3.08,179.53,179.5,8.6418]
[1753836429421,3.08,179.53,179.51,5.5715]
[1753836429623,3.08,179.53,179.51,8.6415]
[1753836429823,3.08,179.52,179.51,3.07]
[1753836430121,3.08,179.52,179.51,8.6415]
[1753836430820,3.08,179.52,179.51,3.07]
[1753836431129,2.75817737,179.56,179.5,3.07]
[1753836431327,3.08,179.55,179.5,3.07]
[1753836431515,3.08,179.55,179.51,3.07]
[1753836431715,3.08,179.54,179.48,3.07]
[1753836432420,3.08,179.54,179.53,5.5709]
[1753836432626,3.08,179.56,179.54,3.07]
[1753836432929,3.08,179.56,179.55,5.5703]
[1753836433124,3.08,179.56,179.52,3.07]
[1753836433324,3.08,179.55,179.52,3.07]
[1753836433621,3.08,179.55,179.54,3.07]
[1753836436122,3.08,179.55,179.5,3.08]
[1753836436918,3.08,179.55,179.51,3.08]
[1753836437323,8.6503,179.55,179.51,8.6513]
[1753836437630,3.02,179.54,179.51,8.6513]
[1753836439024,5.5703,179.55,179.52,8.6511]
[1753836439230,3.02,179.56,179.53,3.08]
[1753836439423,3.02,179.55,179.53,3.08]
[1753836439624,3.02,179.55,179.46,2.75817737]
[1753836439625,5.5708,179.54,179.5,3.08]
[1753836439925,3.02,179.53,179.51,3.08]
[1753836440327,3.02,179.52,179.51,3.08]
[1753836442131,3.02,179.52,179.5,3.08]
[1753836442329,3.02,179.52,179.46,3.08]
[1753836443631,3.02,179.5,179.46,3.08]
[1753836444220,5.5714,179.52,179.46,3.08]
[1753836444422,3.02,179.49,179.46,3.08]
[1753836444625,5.77817737,179.53,179.46,3.08]
[1753836445130,3.02,179.52,179.46,3.08]
[1753836445431,3.02,179.56,179.5,3.08]
[1753836445723,122.35817737,179.59,179.49,2.75817737]
[1753836445724,2.75817737,179.57,179.49,2.75817737]
[1753836446031,3.02,179.54,179.53,3.08]
[1753836446434,3.02,179.54,179.53,8.6509]
[1753836447233,8.32797737,179.57,179.53,8.6509]
[1753836447426,3.02,179.55,179.53,3.08]
[1753836447625,5.77817737,179.55,179.47,2.75817737]
[1753836447831,3.02,179.54,179.48,3.08]
[1753836449130,3.02,179.54,179.52,5.571]
[1753836449326,2.75817737,179.55,179.53,3.08]
[1753836449625,5.77817737,179.57,179.54,8.6503]
[1753836449828,3.02,179.57,179.49,2.75817737]
[1753836450029,3.02,179.57,179.56,3.08]
[1753836450427,122.35817737,179.59,179.51,2.75817737]
[1753836450733,4.3147398,179.58,179.51,2.75817737]
[1753836450931,122.35817737,179.59,179.51,2.75817737]
[1753836451130,4.3147398,179.58,179.55,5.5701]
[1753836451335,3.02,179.57,179.56,3.08]
[1753836452836,2.75817737,179.61,179.56,3.08]
[1753836453033,7.33343623,179.6,179.56,3.08]
[1753836453234,3.02,179.6,179.56,3.08]
[1753836453432,3.02,179.6,179.59,8.649]
[1753836455138,3.02,179.61,179.55,2.75817737]
[1753836455635,3.02,179.61,179.6,5.5685]
[1753836455834,3.02,179.64,179.56,3.08]
[1753836456135,3.02,179.64,179.6,5.5686]
[1753836456334,3.02,179.64,179.61,3.08]
[1753836456831,8.5875,179.64,179.61,3.08]
[1753836457035,3.02,179.63,179.59,5.5689]
[1753836457236,3.02,179.63,179.6,3.08]
[1753836457536,3.02,179.64,179.6,8.6486]
[1753836457734,3.02,179.64,179.57,2.75817737]
[1753836458041,3.02,179.64,179.62,5.5679]
[1753836458234,3.02,179.64,179.63,3.08]
[1753836458435,3.02,179.66,179.63,3.08]
[1753836458634,3.02,179.66,179.64,5.5674]
[1753836458937,3.02,179.66,179.65,3.08]
[1753836459339,3.02,179.65,179.64,3.08]
[1753836459533,3.02,179.65,179.62,3.08]
[1753836459836,3.02,179.66,179.6,3.08]
[1753836460537,3.02,179.66,179.63,3.08]
[1753836461538,3.02,179.63,179.55,2.75817737]
[1753836461738,3.02,179.63,179.59,3.08]
[1753836462134,3.02,179.61,179.53,2.75817737]
[1753836462329,3.02,179.61,179.57,3.08]
[1753836463440,3.02,179.6,179.57,8.6496]
[1753836463837,3.11,179.59,179.57,3.08]
[1753836464136,3.11,179.59,179.52,2.97]
[1753836464337,3.11,179.58,179.55,8.5402]
[1753836465939,3.11,179.59,179.57,2.97]
[1753836466139,3.11,179.58,179.57,2.97]
[1753836466437,2.75817737,179.6,179.57,2.97]
[1753836466740,3.11,179.61,179.57,2.97]
[1753836466939,3.11,179.61,179.58,5.5691]
[1753836467137,3.11,179.61,179.59,2.97]
[1753836467339,3.11,179.6,179.59,2.97]
[1753836467539,3.11,179.6,179.59,8.539]
[1753836468142,3.11,179.6,179.58,2.97]
[1753836468342,3.11,179.59,179.58,2.97]
[1753836469534,3.11,179.59,179.58,8.5393]
[1753836478549,5.86817737,179.61,179.59,2.97]
[1753836478750,3.11,179.6,179.59,2.97]
[1753836479954,3.11,179.62,179.59,2.97]
[1753836480256,3.11,179.61,179.59,2.97]
[1753836480455,3.11,179.61,179.55,2.75817737]
[1753836480456,3.11,179.61,179.6,5.5687]
[1753836480655,119.54,179.67,179.6,2.97]
[1753836480845,5.86817737,179.65,179.62,5.5679]
[1753836481051,3.11,179.64,179.6,2.97]
[1753836481952,122.29817737,179.67,179.6,2.97]
[1753836482253,3.11,179.64,179.57,5.72817737]
[1753836482454,5.5677,179.64,179.6,5.5684]
[1753836482756,3.11,179.64,179.58,2.97]
[1753836482956,3.11,179.66,179.63,5.5675]
[1753836483258,3.11,179.65,179.64,2.97]
[1753836483656,3.11,179.65,179.64,8.5374]
[1753836483858,3.11,179.66,179.65,2.97]
[1753836484761,3.11,179.68,179.66,2.97]
[1753836485052,3.11,179.68,179.61,2.75817737]
[1753836485255,8.6762,179.68,179.67,2.97]
[1753836485455,3.11,179.68,179.61,2.75817737]
[1753836485658,3.11,179.68,179.66,2.97]
[1753836485861,8.6763,179.68,179.66,2.97]
[1753836486054,3.11,179.67,179.66,2.97]
[1753836487556,3.11,179.67,179.61,2.75817737]
[1753836487754,3.11,179.67,179.62,2.97]
[1753836487960,5.566,179.69,179.65,5.5671]
[1753836488164,3.11,179.68,179.67,2.97]
[1753836489861,8.32397737,179.7,179.67,2.97]
[1753836490062,3.11,179.69,179.68,2.97]
[1753836490256,3.11,179.69,179.66,2.97]
[1753836490467,3.11,179.69,179.65,2.97]
[1753836490759,5.5668,179.67,179.63,5.5677]
[1753836490960,3.11,179.66,179.62,2.97]
[1753836491161,3.11,179.65,179.62,2.97]
[1753836491566,3.11,179.65,179.63,5.5675]
[1753836491859,3.11,179.65,179.64,2.97]
[1753836495264,3.11,179.65,179.64,8.5375]
[1753836496060,3.11,179.65,179.64,5.5675]
[1753836496365,3.11,179.65,179.63,2.95]
[1753836496758,2.96,179.63,179.6,2.95]
[1753836496954,2.96,179.63,179.61,2.95]
[1753836497160,5.5686,179.61,179.57,5.5694]
[1753836497359,2.96,179.59,179.58,2.95]
[1753836497761,2.96,179.59,179.54,2.95]
[1753836497968,2.96,179.58,179.54,2.95]
[1753836500164,5.5688,179.6,179.55,5.5702]
[1753836500468,2.96,179.59,179.54,2.95]
[1753836500669,2.96,179.58,179.54,2.95]
[1753836500867,2.96,179.57,179.55,2.95]
[1753836501568,2.96,179.57,179.56,5.57]
[1753836501767,2.96,179.57,179.56,8.52]
[1753836504667,2.75817737,179.6,179.52,2.75817737]
[1753836504870,2.96,179.54,179.53,2.95]
[1753836505271,2.75817737,179.6,179.53,2.95]
[1753836505272,2.96,179.56,179.53,8.5207]
[1753836505474,2.75817737,179.58,179.54,2.95]
[1753836505673,2.96,179.57,179.54,2.95]
[1753836506676,2.96,179.56,179.54,2.95]
[1753836508374,2.96,179.56,179.54,8.5206]
[1753836508675,2.96,179.57,179.55,2.95]
[1753836510472,8.32757737,179.58,179.54,5.5706]
[1753836510675,2.96,179.56,179.5,2.75817737]
[1753836511175,2.96,179.56,179.54,5.5706]
[1753836511673,2.96,179.56,179.55,2.95]
[1753836512778,2.96,179.57,179.56,2.95]
[1753836513279,2.96,179.56,179.54,2.95]
[1753836513473,2.75817737,179.56,179.52,2.95]
[1753836513671,2.96,179.55,179.53,2.95]
[1753836514078,2.96,179.55,179.48,2.75817737]
[1753836514279,2.96,179.55,179.52,2.95]
[1753836514874,2.96,179.55,179.53,2.95]
[1753836515074,2.96,179.53,179.47,2.95]
[1753836515579,2.96,179.52,179.49,2.95]
[1753836515779,2.96,179.52,179.5,2.95]
[1753836516982,2.75817737,179.54,179.47,5.5727]
[1753836517177,2.96,179.51,179.48,2.95]
[1753836518279,2.96,179.51,179.45,2.95]
[1753836518684,2.96,179.51,179.48,5.5722]
[1753836518885,2.96,179.51,179.49,2.95]
[1753836519083,2.96,179.51,179.48,5.5722]
[1753836519279,2.96,179.51,179.44,2.75817737]
[1753836519280,2.96,179.51,179.5,2.95]
[1753836520687,2.96,179.6,179.5,2.95]
[1753836520985,2.96,179.55,179.5,2.95]
[1753836521187,2.96,179.57,179.5,5.70817737]
[1753836521388,2.96,179.57,179.5,2.75817737]
[1753836521581,2.96,179.57,179.51,2.95]
[1753836521777,2.96,179.57,179.5,2.75817737]
[1753836521992,2.96,179.57,179.55,2.95]
[1753836522287,2.96,179.57,179.51,2.95]
[1753836522880,2.96,179.57,179.43,2.95]
[1753836523076,2.96,179.56,179.49,2.95]
[1753836523480,2.96,179.56,179.52,5.5709]
[1753836523687,2.96,179.56,179.54,2.95]
[1753836523992,2.75817737,179.59,179.51,2.98]
[1753836524287,3.05,179.58,179.53,2.98]
[1753836524486,2.75817737,179.61,179.53,2.98]
[1753836524685,3.05,179.6,179.55,2.98]
[1753836525881,3.05,179.64,179.6,5.5685]
[1753836526082,3.05,179.63,179.62,2.98]
[1753836529386,3.05,179.63,179.57,2.98]
[1753836529593,2.75817737,179.61,179.57,2.98]
[1753836529788,3.05,179.6,179.57,2.98]
[1753836529989,8.6189,179.6,179.57,2.98]
[1753836530188,3.05,179.59,179.57,2.98]
[1753836530383,3.05,179.59,179.55,2.98]
[1753836530586,3.05,179.56,179.53,2.98]
[1753836531291,3.05,179.54,179.48,2.75817737]
[1753836531488,3.05,179.53,179.52,2.98]
[1753836532891,3.05,179.53,179.52,8.5512]
[1753836533489,119.48,179.63,179.53,2.98]
[1753836533490,3.05,179.56,179.53,2.98]
[1753836533693,3.05,179.56,179.52,5.5712]
[1753836533994,3.05,179.55,179.54,2.98]
[1753836536484,3.05,179.55,179.49,2.98]
[1753836538289,3.05,179.55,179.51,5.5712]
[1753836538590,3.05,179.55,179.48,2.75817737]
[1753836538591,3.05,179.55,179.53,2.98]
[1753836539194,8.32787737,179.57,179.53,2.98]
[1753836539495,3.05,179.54,179.53,2.98]
[1753836540593,3.05,179.56,179.54,2.98]
[1753836541095,3.05,179.56,179.55,2.98]
[1753836541797,3.05,179.56,179.54,2.98]
[1753836543096,3.05,179.55,179.52,5.5711]
[1753836543292,3.05,179.55,179.52,8.5511]
[1753836543490,5.80817737,179.55,179.52,5.5711]
[1753836543689,3.05,179.54,179.53,2.98]
[1753836544395,3.05,179.54,179.53,8.5509]
[1753836544789,3.05,179.54,179.53,2.98]
[1753836545190,3.05,179.54,179.51,2.98]
[1753836545591,2.75817737,179.55,179.46,2.75817737]
[1753836545793,3.05,179.52,179.47,2.98]
[1753836546193,3.05,179.52,179.45,2.98]
[1753836546594,3.05,179.5,179.48,2.98]
[1753836546996,2.75817737,179.53,179.48,2.98]
[1753836547197,3.05,179.51,179.49,2.98]
[1753836547395,2.75817737,179.53,179.49,2.98]
[1753836547590,3.05,179.5,179.49,2.98]
[1753836549702,3.05,179.5,179.44,2.75817737]
[1753836549995,3.05,179.5,179.45,2.98]
[1753836550200,3.05,179.5,179.48,5.5724]
[1753836550396,3.05,179.5,179.48,8.5524]
[1753836550700,3.05,179.5,179.48,2.98]
[1753836551492,8.6219,179.5,179.48,2.98]
[1753836551692,8.6219,179.5,179.41,374.46]
[1753836551693,3.05,179.48,179.41,374.46]
[1753836551898,3.05,179.48,179.42,2.98]
[1753836552801,2.75817737,179.45,179.4,2.98]
[1753836553002,3.05,179.44,179.4,2.98]
[1753836553204,3.05,179.44,179.41,5.5744]
[1753836553502,3.05,179.44,179.41,2.98]
[1753836553701,3.05,179.42,179.39,2.98]
[1753836554004,3.27,179.41,179.4,3.02]
[1753836554494,2.75817737,179.43,179.4,8.5947]
[1753836554698,3.27,179.42,179.41,3.02]
[1753836555798,8.8443,179.42,179.41,3.02]
[1753836556304,3.27,179.41,179.4,3.02]
[1753836558297,3.27,179.41,179.4,8.5949]
[1753836558695,3.27,179.41,179.4,3.02]
[1753836559303,3.27,179.41,179.4,8.5949]
[1753836559503,3.27,179.43,179.41,3.02]
[1753836559706,3.27,179.41,179.4,5.5749]
[1753836560201,3.27,179.41,179.4,8.5949]
[1753836560998,8.33197737,179.44,179.4,8.5949]
[1753836561202,3.27,179.42,179.41,3.02]
[1753836561400,3.27,179.42,179.41,8.5946]
[1753836561901,3.27,179.42,179.41,3.02]
[1753836563900,3.27,179.42,179.41,8.5946]
[1753836565601,3.27,179.42,179.41,3.02]
[1753836565802,3.27,179.42,179.4,5.5748]
[1753836566103,3.27,179.42,179.4,8.5948]
[1753836566505,3.27,179.42,179.41,3.02]
[1753836572103,3.27,179.42,179.41,8.5946]
[1753836572409,3.27,179.43,179.42,3.02]
[1753836572904,3.27,179.43,179.42,8.5943]
[1753836573203,3.27,179.43,179.35,2.75817737]
[1753836573204,3.27,179.46,179.4,3.02]
[1753836573405,3.27,179.45,179.42,5.5742]
[1753836573609,2.75817737,179.44,179.4,3.02]
[1753836573804,3.27,179.43,179.37,3.02]
[1753836574010,8.8442,179.43,179.39,5.575]
[1753836574309,3.27,179.41,179.39,5.575]
[1753836574505,3.27,179.4,179.39,5.575]
[1753836574905,5.5742,179.43,179.39,5.575]
[1753836575207,3.27,179.41,179.4,3.02]
[1753836575910,3.27,179.41,179.33,3.02]
[1753836576212,3.27,179.39,179.33,3.02]
[1753836576412,3.27,179.39,179.36,5.5759]
[1753836576707,3.27,179.39,179.37,3.02]
[1753836577608,2.75817737,179.38,179.37,3.02]
[1753836577808,6.02817737,179.38,179.37,3.02]
[1753836578008,6.02817737,179.38,179.37,8.5958]
[1753836579806,6.02817737,179.38,179.37,3.02]
[1753836581108,6.02817737,179.38,179.37,5.5758]
[1753836581308,6.02817737,179.38,179.37,3.02]
[1753836586420,2.75817737,179.38,179.37,8.5959]
[1753836586718,6.00817737,179.38,179.37,8.5959]
[1753836587918,2.75817737,179.4,179.37,3.02]
[1753836588119,6.00817737,179.4,179.37,3.02]
[1753836588515,3.25,179.39,179.37,3.02]
[1753836588818,3.25,179.38,179.32,11.13632104]
[1753836589316,3.25,179.38,179.33,3.02]
[1753836589517,3.25,179.38,179.37,5.5756]
[1753836589715,3.25,179.38,179.37,8.5956]
[1753836590818,3.25,179.39,179.38,5.5753]
[1753836591618,3.25,179.39,179.38,8.5953]
[1753836595415,3.25,179.39,179.37,5.5757]
[1753836595722,3.25,179.39,179.33,3.02]
[1753836595922,3.25,179.39,179.35,5.5762]
[1753836596221,3.25,179.38,179.35,3.02]
[1753836596718,3.25,179.38,179.36,3.02]
[1753836597322,3.25,179.38,179.36,8.5961]
[1753836598019,3.25,179.37,179.36,8.5961]
[1753836602423,3.25,179.41,179.39,3.02]
[1753836602812,5.5732,179.46,179.39,3.02]
[1753836603013,7.60859099,179.45,179.39,3.02]
[1753836603214,3.25,179.47,179.39,3.02]
[1753836603424,4.35882824,179.46,179.39,3.02]
[1753836603619,3.25,179.44,179.39,3.02]
[1753836604121,3.25,179.44,179.42,3.02]
[1753836604316,3.25,179.46,179.39,3.02]
[1753836604524,7.6089613,179.45,179.41,3.02]
[1753836604720,7.6089613,179.45,179.43,5.5738]
[1753836604721,3.25,179.45,179.43,5.5738]
[1753836604923,3.25,179.45,179.44,3.02]
[1753836605322,7.60939923,179.45,179.43,5.5738]
[1753836605616,3.25,179.45,179.38,2.75817737]
[1753836605821,3.25,179.45,179.39,3.02]
[1753836606023,3.25,179.45,179.41,5.5743]
[1753836606220,3.25,179.45,179.42,3.02]
[1753836606628,3.25,179.46,179.39,3.02]
[1753836606929,7.60958933,179.45,179.39,3.02]
[1753836607133,3.25,179.45,179.39,3.02]
[1753836607524,6.00817737,179.47,179.4,2.75817737]
[1753836607722,3.25,179.44,179.41,3.02]
[1753836607933,8.33097737,179.47,179.41,3.02]
[1753836608128,7.60853158,179.46,179.41,3.02]
[1753836608328,3.25,179.48,179.47,3.02]
[1753836608528,7.60864194,179.48,179.47,3.02]
[1753836609031,4.35864194,179.48,179.47,3.02]
[1753836609232,7.60864194,179.48,179.47,3.02]
[1753836609430,7.60864194,179.48,179.45,8.5933]
[1753836609634,3.25,179.46,179.41,3.02]
[1753836609827,3.25,179.46,179.39,3.02]
[1753836609828,2.75817737,179.45,179.39,3.02]
[1753836610028,3.25,179.44,179.41,5.5744]
[1753836610229,3.25,179.44,179.41,8.5944]
[1753836611237,3.25,179.44,179.42,8.5943]
[1753836611534,3.25,179.44,179.38,2.75817737]
[1753836611535,3.25,179.44,179.39,3.02]
[1753836612040,3.25,179.48,179.41,3.02]
[1753836612334,4.35983775,179.47,179.42,2.75817737]
[1753836612535,3.25,179.48,179.43,3.02]
[1753836612837,3.25,179.49,179.43,3.02]
[1753836613137,4.35947091,179.48,179.43,3.02]
[1753836613332,3.25,179.46,179.43,3.02]
[1753836614135,3.25,179.46,179.45,3.23]
[1753836615732,3.25,179.46,179.45,8.8034]
[1753836616126,2.75817737,179.46,179.4,5.5747]
[1753836616331,3.11,179.45,179.4,5.5747]
[1753836616531,3.11,179.45,179.39,3.23]
[1753836617339,3.11,179.45,179.43,5.5739]
[1753836617640,3.11,179.44,179.39,3.23]
[1753836617934,3.11,179.44,179.41,8.8046]
[1753836618135,3.11,179.44,179.42,3.23]
[1753836618339,3.11,179.43,179.42,3.23]
[1753836619040,3.11,179.43,179.42,8.8043]
[1753836619233,2.75817737,179.48,179.38,2.75817737]
[1753836619438,4.35926343,179.47,179.39,3.23]
[1753836619637,3.11,179.46,179.39,3.23]
[1753836620236,3.11,179.45,179.42,5.574]
[1753836620431,3.11,179.45,179.43,3.23]
[1753836620837,3.11,179.43,179.4,3.23]
[1753836621629,8.684,179.43,179.4,3.23]
[1753836621835,5.86817737,179.42,179.39,3.23]
[1753836622037,3.11,179.39,179.37,3.23]
[1753836622443,2.75817737,179.4,179.37,8.8056]
[1753836622735,3.11,179.38,179.37,8.8056]
[1753836622940,5.86817737,179.4,179.37,3.23]
[1753836623238,3.11,179.41,179.37,3.23]
[1753836623436,2.75817737,179.42,179.37,3.23]
[1753836623637,3.11,179.4,179.37,3.23]
[1753836623936,3.11,179.43,179.39,3.23]
[1753836624136,5.86817737,179.44,179.39,3.23]
[1753836624339,3.11,179.44,179.39,3.23]
[1753836625236,119.42,179.45,179.43,3.23]
[1753836625439,3.11,179.45,179.44,3.23]